fUST/lending_fUST_20241222
["ID","MTS","AMOUNT","RATE_DAILY","PERIOD"]
[346306152,1734882640742,-500.0,0.00013698,2]
[346306154,1734882640751,-3126.25,0.00013698,2]
[346306157,1734882640764,-500.0,0.00013698,2]
[346306159,1734882640773,-1091.44,0.00013698,2]
[346306161,1734882640782,-1972.18,0.00013698,2]
[346306162,1734882640791,-2036.99,0.00013698,2]
[346306164,1734882640800,-500.0,0.00013698,2]
[346306166,1734882640809,-1000.0,0.00013698,2]
[346306168,1734882640820,-515.39350899,0.00013698,2]
[346306170,1734882640829,-1683.22,0.00013698,2]
[346306172,1734882640838,-1830.13,0.00013698,2]
[346306174,1734882640848,-500.0,0.00013698,2]
[346306177,1734882640857,-500.0,0.00013698,2]
[346306178,1734882640866,-500.0,0.00013698,2]
[346306180,1734882640875,-500.0,0.00013698,2]
[346306182,1734882640885,-1692.58,0.00013698,2]
[346306184,1734882640894,-151.0,0.00013698,2]
[346306186,1734882640905,-500.0,0.00013698,2]
[346306188,1734882640914,-511.23405179,0.00013698,2]
[346306190,1734882640923,-796.82,0.00013698,2]
[346306193,1734882640933,-500.0,0.00013698,2]
[346306195,1734882640942,-832.29,0.00013698,2]
[346306197,1734882640951,-500.0,0.00013698,2]
[346306199,1734882640961,-205.95442035,0.00013698,2]
[346306201,1734882640970,-1008.6,0.00013698,2]
[346306203,1734882640979,-500.0,0.00013698,2]
[346306205,1734882640988,-500.0,0.00013698,2]
[346306207,1734882640997,-500.0,0.00013698,2]
[346306209,1734882641006,-500.0,0.00013698,2]
[346306211,1734882641015,-741.4,0.00013698,2]
[346306213,1734882641025,-500.0,0.00013698,2]
[346306215,1734882641034,-502.75956139,0.00013698,2]
[346306217,1734882641043,-2214.91,0.00013698,2]
[346306219,1734882641053,-500.0,0.00013698,2]
[346306221,1734882641062,-151.0,0.00013698,2]
[346306223,1734882641071,-500.0,0.00013698,2]
[346306224,1734882641081,-592.02,0.00013698,2]
[346306226,1734882641090,-500.0,0.00013698,2]
[346306229,1734882641100,-500.0,0.00013698,2]
[346306231,1734882641112,-500.0,0.00013698,2]
[346306232,1734882641122,-500.0,0.00013698,2]
[346306234,1734882641131,-631.8613904,0.00013698,2]
[346306236,1734882641140,-500.0,0.00013698,2]
[346306238,1734882641151,-500.0,0.00013698,2]
[346306240,1734882641161,-578.88,0.00013698,2]
[346306242,1734882641171,-500.0,0.00013698,2]
[346306244,1734882641180,-500.0,0.00013698,2]
[346306246,1734882641190,-500.0,0.00013698,2]
[346306248,1734882641200,-257.08029336,0.00013698,2]
[346306250,1734882641209,-440.7001434,0.00013698,2]
[346306252,1734882641218,-710.54,0.00013698,2]
[346306254,1734882641227,-500.0,0.00013698,2]
[346306257,1734882641246,-500.0,0.00013698,2]
[346306259,1734882641255,-822.23,0.00013698,2]
[346306261,1734882641265,-2516.33,0.00013698,2]
[346306262,1734882641274,-500.0,0.00013698,2]
[346306264,1734882641301,-1092.35,0.00013698,2]
[346306266,1734882641312,-500.0,0.00013698,2]
[346306268,1734882641321,-969.27,0.00013698,2]
[346306270,1734882641332,-2802.73,0.00013698,2]
[346306273,1734882641341,-508.60878939,0.00013698,2]
[346306274,1734882641350,-500.0,0.00013698,2]
[346306277,1734882641360,-500.0,0.00013698,2]
[346306279,1734882641369,-500.0,0.00013698,2]
[346306281,1734882641378,-500.0,0.00013698,2]
[346306283,1734882641387,-2251.88,0.00013698,2]
[346306284,1734882641396,-503.9175722,0.00013698,2]
[346306286,1734882641406,-500.0,0.00013698,2]
[346306289,1734882641415,-500.0,0.00013698,2]
[346306291,1734882641424,-500.0,0.00013698,2]
[346306293,1734882641435,-802.46,0.00013698,2]
[346306295,1734882641445,-500.0,0.00013698,2]
[346306297,1734882641454,-524.95779028,0.00013698,2]
[346306299,1734882641463,-500.0,0.00013698,2]
[346306301,1734882641472,-500.0,0.00013698,2]
[346306303,1734882641481,-500.0,0.00013698,2]
[346306305,1734882641491,-171.64340415,0.00013698,2]
[346306307,1734882641499,-500.0,0.00013698,2]
[346306309,1734882641508,-1707.17,0.00013698,2]
[346306311,1734882641518,-907.59,0.00013698,2]
[346306313,1734882641527,-500.0,0.00013698,2]
[346306315,1734882641536,-500.0,0.00013698,2]
[346306317,1734882641545,-500.0,0.00013698,2]
[346306319,1734882641554,-500.0,0.00013698,2]
[346306320,1734882641563,-2437.81,0.00013698,2]
[346306322,1734882641572,-500.0,0.00013698,2]
[346306324,1734882641581,-500.0,0.00013698,2]
[346306326,1734882641590,-500.0,0.00013698,2]
[346306328,1734882641600,-500.0,0.00013698,2]
[346306330,1734882641609,-500.0,0.00013698,2]
[346306332,1734882641618,-500.0,0.00013698,2]
[346306334,1734882641627,-500.0,0.00013698,2]
[346306336,1734882641637,-500.0,0.00013698,2]
[346306338,1734882641646,-3615.51,0.00013698,2]
[346306340,1734882641656,-1043.19,0.00013698,2]
[346306342,1734882641665,-500.0,0.00013698,2]
[346306344,1734882641675,-500.0,0.00013698,2]
[346306346,1734882641684,-976.35,0.00013698,2]
[346306349,1734882641695,-543.81,0.00013698,2]
[346306351,1734882641704,-500.0,0.00013698,2]
[346306353,1734882641714,-711.3,0.00013698,2]
[346306355,1734882641723,-500.0,0.00013698,2]
[346306357,1734882641732,-500.0,0.00013698,2]
[346306359,1734882641742,-500.0,0.00013698,2]
[346306361,1734882641751,-593.37,0.00013698,2]
[346306363,1734882641761,-500.0,0.00013698,2]
[346306365,1734882641771,-500.0,0.00013698,2]
[346306367,1734882641780,-500.0,0.00013698,2]
[346306369,1734882641790,-1209.25,0.00013698,2]
[346306371,1734882641799,-1442.53,0.00013698,2]
[346306373,1734882641808,-500.0,0.00013698,2]
[346306375,1734882641819,-500.0,0.00013698,2]
[346306377,1734882641829,-500.0,0.00013698,2]
[346306379,1734882641839,-1228.78,0.00013698,2]
[346306381,1734882641848,-1676.23,0.00013698,2]
[346306383,1734882641857,-3632.1,0.00013698,2]
[346306385,1734882641867,-500.0,0.00013698,2]
[346306387,1734882641877,-500.0,0.00013698,2]
[346306389,1734882641886,-500.0,0.00013698,2]
[346306391,1734882641896,-565.21,0.00013698,2]
[346306393,1734882641907,-1064.18,0.00013698,2]
[346306395,1734882641917,-500.0,0.00013698,2]
[346306397,1734882641928,-500.0,0.00013698,2]
[346306400,1734882641938,-500.0,0.00013698,2]
[346306402,1734882641947,-2315.22,0.00013698,2]
[346306403,1734882641956,-613.13,0.00013698,2]
[346306405,1734882641966,-500.0,0.00013698,2]
[346306408,1734882641975,-500.0,0.00013698,2]
[346306410,1734882641985,-500.0,0.00013698,2]
[346306412,1734882641994,-500.0,0.00013698,2]
[346306414,1734882642003,-673.33,0.00013698,2]
[346306416,1734882642013,-500.0,0.00013698,2]
[346306418,1734882642022,-971.15,0.00013698,2]
[346306420,1734882642031,-500.0,0.00013698,2]
[346306422,1734882642041,-1853.76,0.00013698,2]
[346306424,1734882642050,-500.0,0.00013698,2]
[346306426,1734882642059,-500.0,0.00013698,2]
[346306428,1734882642069,-500.0,0.00013698,2]
[346306430,1734882642078,-500.0,0.00013698,2]
[346306432,1734882642087,-500.0,0.00013698,2]
[346306434,1734882642096,-500.0,0.00013698,2]
[346306437,1734882642147,-500.0,0.00013698,2]
[346306439,1734882642157,-5996.24,0.00013698,2]
[346306441,1734882642166,-500.0,0.00013698,2]
[346306443,1734882642176,-500.0,0.00013698,2]
[346306445,1734882642185,-775.57,0.00013698,2]
[346306447,1734882642195,-878.45,0.00013698,2]
[346306449,1734882642204,-513.54,0.00013698,2]
[346306451,1734882642213,-19294.93,0.00013698,2]
[346306453,1734882642223,-500.0,0.00013698,2]
[346306455,1734882642233,-503.77909595,0.00013698,2]
[346306457,1734882642242,-627.52,0.00013698,2]
[346306459,1734882642252,-3406.86,0.00013698,2]
[346306461,1734882642261,-500.0,0.00013698,2]
[346306463,1734882642271,-500.0,0.00013698,2]
[346306465,1734882642280,-198.12338279,0.00013698,2]
[346306468,1734882642290,-500.0,0.00013698,2]
[346306471,1734882642299,-500.0,0.00013698,2]
[346306474,1734882642309,-621.68,0.00013698,2]
[346306476,1734882642322,-858.34,0.00013698,2]
[346306478,1734882642332,-2949.49,0.00013698,2]
[346306481,1734882642341,-500.0,0.00013698,2]
[346306483,1734882642350,-500.0,0.00013698,2]
[346306484,1734882642359,-1189.47,0.00013698,2]
[346306486,1734882642369,-500.0,0.00013698,2]
[346306488,1734882642378,-500.0,0.00013698,2]
[346306490,1734882642387,-500.0,0.00013698,2]
[346306493,1734882642396,-500.0,0.00013698,2]
[346306497,1734882642406,-500.0,0.00013698,2]
[346306500,1734882642415,-500.0,0.00013698,2]
[346306503,1734882642424,-806.36,0.00013698,2]
[346306506,1734882642434,-500.0,0.00013698,2]
[346306509,1734882642443,-24855.4,0.00013698,2]
[346306512,1734882642452,-601.45,0.00013698,2]
[346306515,1734882642462,-1670.83,0.00013698,2]
[346306518,1734882642472,-500.0,0.00013698,2]
[346306521,1734882642481,-500.0,0.00013698,2]
[346306524,1734882642491,-648.3,0.00013698,2]
[346306528,1734882642500,-500.0,0.00013698,2]
[346306533,1734882642510,-1848.71,0.00013698,2]
[346306537,1734882642519,-598.87,0.00013698,2]
[346306540,1734882642528,-500.0,0.00013698,2]
[346306543,1734882642538,-500.0,0.00013698,2]
[346306546,1734882642547,-773.0,0.00013698,2]
[346306550,1734882642557,-732.23,0.00013698,2]
[346306554,1734882642567,-1664.55,0.00013698,2]
[346306556,1734882642576,-500.0,0.00013698,2]
[346306560,1734882642585,-500.0,0.00013698,2]
[346306563,1734882642595,-500.0,0.00013698,2]
[346306566,1734882642605,-1112.14,0.00013698,2]
[346306569,1734882642615,-4193.06,0.00013698,2]
[346306572,1734882642624,-500.0,0.00013698,2]
[346306575,1734882642634,-500.0,0.00013698,2]
[346306578,1734882642643,-541.66,0.00013698,2]
[346306581,1734882642653,-500.0,0.00013698,2]
[346306584,1734882642662,-500.0,0.00013698,2]
[346306587,1734882642672,-500.0,0.00013698,2]
[346306589,1734882642682,-1166.38,0.00013698,2]
[346306592,1734882642691,-500.0,0.00013698,2]
[346306596,1734882642702,-500.0,0.00013698,2]
[346306600,1734882642712,-500.0,0.00013698,2]
[346306602,1734882642721,-5174.89,0.00013698,2]
[346306605,1734882642730,-83882.35,0.00013698,2]
[346306607,1734882642739,-919.06,0.00013698,2]
[346306609,1734882642748,-500.0,0.00013698,2]
[346306612,1734882642757,-500.0,0.00013698,2]
[346306615,1734882642766,-586.17,0.00013698,2]
[346306618,1734882642775,-12699.53,0.00013698,2]
[346306620,1734882642785,-500.0,0.00013698,2]
[346306624,1734882642795,-500.0,0.00013698,2]
[346306626,1734882642803,-1451.35,0.00013698,2]
[346306629,1734882642813,-3303.15,0.00013698,2]
[346306632,1734882642823,-500.0,0.00013698,2]
[346306635,1734882642832,-501.70122586,0.00013698,2]
[346306638,1734882642841,-500.0,0.00013698,2]
[346306640,1734882642850,-500.0,0.00013698,2]
[346306642,1734882642861,-500.0,0.00013698,2]
[346306644,1734882642871,-22822.65,0.00013698,2]
[346306646,1734882642880,-3121.02,0.00013698,2]
[346306648,1734882642889,-500.0,0.00013698,2]
[346306650,1734882642898,-500.0,0.00013698,2]
[346306652,1734882642908,-500.0,0.00013698,2]
[346306654,1734882642917,-500.0,0.00013698,2]
[346306656,1734882642927,-1000.0,0.00013698,2]
[346306658,1734882642936,-500.0,0.00013698,2]
[346306660,1734882642946,-1012.45,0.00013698,2]
[346306662,1734882642956,-150.43271396,0.00013698,2]
[346306664,1734882642965,-500.0,0.00013698,2]
[346306666,1734882642975,-500.0,0.00013698,2]
[346306668,1734882642984,-500.0,0.00013698,2]
[346306670,1734882642993,-500.0,0.00013698,2]
[346306672,1734882643001,-500.0,0.00013698,2]
[346306674,1734882643011,-500.0,0.00013698,2]
[346306676,1734882643020,-500.0,0.00013698,2]
[346306678,1734882643028,-500.0,0.00013698,2]
[346306680,1734882643037,-617.25,0.00013698,2]
[346306682,1734882643047,-500.0,0.00013698,2]
[346306684,1734882643056,-526.8516863,0.00013698,2]
[346306686,1734882643064,-500.0,0.00013698,2]
[346306688,1734882643073,-1307.52,0.00013698,2]
[346306690,1734882643082,-2067.24,0.00013698,2]
[346306691,1734882643091,-531.3,0.00013698,2]
[346306693,1734882643100,-908.29,0.00013698,2]
[346306695,1734882643111,-3575.43,0.00013698,2]
[346306697,1734882643120,-577.22,0.00013698,2]
[346306699,1734882643129,-324.81563084,0.00013698,2]
[346306702,1734882643149,-175.18436916,0.00013698,2]
[346306705,1734882643158,-1533.33,0.00013698,2]
[346306707,1734882643167,-7986.81,0.00013698,2]
[346306709,1734882643176,-151.0,0.00013698,2]
[346306710,1734882643186,-151.0,0.00013698,2]
[346306711,1734882643195,-500.0,0.00013698,2]
[346306712,1734882643205,-500.0,0.00013698,2]
[346306713,1734882643214,-522.4,0.00013698,2]
[346306714,1734882643223,-500.0,0.00013698,2]
[346306715,1734882643232,-500.0,0.00013698,2]
[346306716,1734882643242,-607.80998396,0.00013698,2]
[346306717,1734882643251,-500.0,0.00013698,2]
[346306718,1734882643260,-500.0,0.00013698,2]
[346306719,1734882643269,-665.77,0.00013698,2]
[346306720,1734882643278,-6799.83,0.00013698,2]
[346306721,1734882643288,-734.61,0.00013698,2]
[346306722,1734882643297,-504.44,0.00013698,2]
[346306723,1734882643306,-500.0,0.00013698,2]
[346306724,1734882643315,-500.0,0.00013698,2]
[346306726,1734882643324,-887.04,0.00013698,2]
[346306727,1734882643335,-500.0,0.00013698,2]
[346306729,1734882643344,-1589.95,0.00013698,2]
[346306731,1734882643352,-1925.03,0.00013698,2]
[346306733,1734882643362,-500.0,0.00013698,2]
[346306735,1734882643370,-700.32,0.00013698,2]
[346306737,1734882643379,-1719.23,0.00013698,2]
[346306739,1734882643389,-1365.88,0.00013698,2]
[346306741,1734882643398,-955.12,0.00013698,2]
[346306743,1734882643407,-151.0,0.00013698,2]
[346306745,1734882643416,-151.0,0.00013698,2]
[346306747,1734882643425,-245.11446634,0.00013698,2]
[346306749,1734882643435,-4977.5,0.00013698,2]
[346306751,1734882643444,-1149.96,0.00013698,2]
[346306753,1734882643454,-500.0,0.00013698,2]
[346306755,1734882643464,-500.0,0.00013698,2]
[346306757,1734882643473,-2887.81,0.00013698,2]
[346306759,1734882643482,-500.0,0.00013698,2]
[346306761,1734882643491,-3272.67,0.00013698,2]
[346306763,1734882643500,-500.0,0.00013698,2]
[346306765,1734882643511,-500.0,0.00013698,2]
[346306767,1734882643520,-500.0,0.00013698,2]
[346306769,1734882643530,-500.0,0.00013698,2]
[346306771,1734882643539,-500.0,0.00013698,2]
[346306773,1734882643548,-500.0,0.00013698,2]
[346306775,1734882643558,-500.0,0.00013698,2]
[346306777,1734882643568,-500.0,0.00013698,2]
[346306779,1734882643577,-500.0,0.00013698,2]
[346306781,1734882643586,-500.0,0.00013698,2]
[346306783,1734882643596,-872.97,0.00013698,2]
[346306785,1734882643605,-500.0,0.00013698,2]
[346306787,1734882643616,-1775.03,0.00013698,2]
[346306789,1734882643626,-1611.86,0.00013698,2]
[346306791,1734882643635,-500.0,0.00013698,2]
[346306794,1734882643645,-500.0,0.00013698,2]
[346306795,1734882643654,-1588.64,0.00013698,2]
[346306797,1734882643663,-1520.08,0.00013698,2]
[346306799,1734882643673,-6292.59,0.00013698,2]
[346306802,1734882643683,-500.0,0.00013698,2]
[346306804,1734882643692,-876.14,0.00013698,2]
[346306806,1734882643701,-500.0,0.00013698,2]
[346306808,1734882643711,-500.0,0.00013698,2]
[346306809,1734882643720,-3359.14,0.00013698,2]
[346306811,1734882643729,-500.0,0.00013698,2]
[346306814,1734882643739,-153.0,0.00013699,2]
[346306815,1734882643748,-153.0,0.00013699,2]
[346306818,1734882643757,-153.0,0.00013699,2]
[346306820,1734882643766,-151.0,0.00013699,2]
[346306821,1734882643775,-151.0,0.00013699,2]
[346306823,1734882643784,-1992.476533,0.00013699,2]
[346306825,1734882643794,-299.829,0.0001379,2]
[346306828,1734882643803,-543.25438974,0.00013835,2]
[346306829,1734882643813,-1681.86469706,0.00013872,2]
[346306832,1734882643823,-601.46135247,0.00013939,2]
[346306833,1734882643832,-184.29669183,0.00013971,2]
[346306835,1734882643841,-151.0,0.00013972,2]
[346306837,1734882643851,-546.67,0.00013972,2]
[346306839,1734882643860,-500.0,0.00013972,2]
[346306841,1734882643869,-500.0,0.00013972,2]
[346306860,1734882644018,-245.92330406,0.00013972,2]
[346306863,1734882644052,-500.0,0.00013972,2]
[346306865,1734882644061,-500.0,0.00013972,2]
[346306867,1734882644072,-500.0,0.00013972,2]
[346306869,1734882644082,-500.0,0.00013972,2]
[346306871,1734882644091,-500.0,0.00013972,2]
[346306873,1734882644102,-500.0,0.00013972,2]
[346306875,1734882644113,-550.95,0.00013972,2]
[346306877,1734882644123,-500.0,0.00013972,2]
[346306879,1734882644132,-568.07,0.00013972,2]
[346306881,1734882644141,-618.59,0.00013972,2]
[346306883,1734882644151,-500.0,0.00013972,2]
[346306885,1734882644160,-151.0,0.00013972,2]
[346306887,1734882644169,-151.0,0.00013972,2]
[346306889,1734882644179,-209.677116,0.00013972,2]
[346306891,1734882644189,-500.0,0.00013972,2]
[346306893,1734882644198,-919.51,0.00013972,2]
[346306895,1734882644207,-500.0,0.00013972,2]
[346306897,1734882644216,-522.68,0.00013972,2]
[346306899,1734882644226,-500.0,0.00013972,2]
[346306901,1734882644235,-500.0,0.00013972,2]
[346306903,1734882644244,-500.0,0.00013972,2]
[346306905,1734882644253,-500.0,0.00013972,2]
[346306907,1734882644263,-500.0,0.00013972,2]
[346306909,1734882644272,-500.0,0.00013972,2]
[346306911,1734882644286,-807.3,0.00013972,2]
[346306913,1734882644296,-500.0,0.00013972,2]
[346306914,1734882644306,-500.0,0.00013972,2]
[346306916,1734882644318,-1102.51,0.00013972,2]
[346306919,1734882644328,-514.24237531,0.00013972,2]
[346306921,1734882644338,-500.0,0.00013972,2]
[346306922,1734882644347,-500.0,0.00013972,2]
[346306925,1734882644356,-500.0,0.00013972,2]
[346306927,1734882644366,-500.0,0.00013972,2]
[346306929,1734882644377,-500.0,0.00013972,2]
[346306931,1734882644387,-500.0,0.00013972,2]
[346306933,1734882644396,-500.0,0.00013972,2]
[346306935,1734882644406,-500.0,0.00013972,2]
[346306937,1734882644415,-500.0,0.00013972,2]
[346306939,1734882644424,-500.0,0.00013972,2]
[346306941,1734882644433,-500.0,0.00013972,2]
[346306943,1734882644442,-500.0,0.00013972,2]
[346306945,1734882644451,-629.3,0.00013972,2]
[346306947,1734882644460,-581.95721916,0.00013972,2]
[346306949,1734882644469,-356.80300889,0.00013972,2]
[346306951,1734882644478,-271.55794129,0.00013972,2]
[346306953,1734882644487,-500.0,0.00013972,2]
[346306955,1734882644496,-500.0,0.00013972,2]
[346306957,1734882644506,-151.0,0.00013972,2]
[346306959,1734882644515,-151.0,0.00013972,2]
[346306961,1734882644524,-151.0,0.00013972,2]
[346306963,1734882644533,-500.0,0.00013972,2]
[346306965,1734882644543,-223.324361,0.00013972,2]
[346306967,1734882644552,-500.0,0.00013972,2]
[346306969,1734882644561,-500.0,0.00013972,2]
[346306971,1734882644571,-500.0,0.00013972,2]
[346306973,1734882644583,-500.0,0.00013972,2]
[346306975,1734882644593,-500.0,0.00013972,2]
[346306977,1734882644602,-500.0,0.00013972,2]
[346306979,1734882644611,-500.0,0.00013972,2]
[346306980,1734882644620,-500.0,0.00013972,2]
[346306983,1734882644630,-504.04148761,0.00013972,2]
[346306985,1734882644639,-275.66278501,0.00013972,2]
[346306986,1734882644648,-500.0,0.00013972,2]
[346306988,1734882644658,-500.0,0.00013972,2]
[346306991,1734882644667,-544.75,0.00013972,2]
[346306993,1734882644677,-500.0,0.00013972,2]
[346306994,1734882644686,-500.0,0.00013972,2]
[346306996,1734882644695,-500.0,0.00013972,2]
[346306998,1734882644704,-999.56,0.00013972,2]
[346307000,1734882644714,-1120.79,0.00013972,2]
[346307002,1734882644723,-500.0,0.00013972,2]
[346307004,1734882644732,-500.0,0.00013972,2]
[346307006,1734882644741,-993.59,0.00013972,2]
[346307008,1734882644750,-534.09,0.00013972,2]
[346307010,1734882644760,-585.27623402,0.00013972,2]
[346307012,1734882644769,-1039.21,0.00013972,2]
[346307014,1734882644778,-500.0,0.00013972,2]
[346307016,1734882644788,-938.62,0.00013972,2]
[346307018,1734882644798,-500.0,0.00013972,2]
[346307020,1734882644807,-500.0,0.00013972,2]
[346307022,1734882644818,-500.0,0.00013972,2]
[346307024,1734882644827,-500.0,0.00013972,2]
[346307026,1734882644836,-500.0,0.00013972,2]
[346307028,1734882644846,-500.0,0.00013972,2]
[346307030,1734882644856,-500.0,0.00013972,2]
[346307032,1734882644866,-500.0,0.00013972,2]
[346307034,1734882644875,-500.0,0.00013972,2]
[346307036,1734882644885,-1111.02,0.00013972,2]
[346307038,1734882644895,-500.0,0.00013972,2]
[346307040,1734882644908,-512.31608815,0.00013972,2]
[346307042,1734882644918,-500.0,0.00013972,2]
[346307044,1734882644927,-1216.02,0.00013972,2]
[346307046,1734882644937,-500.0,0.00013972,2]
[346307048,1734882644947,-187.91767201,0.00013972,2]
[346307050,1734882644956,-500.0,0.00013972,2]
[346307053,1734882644965,-773.6,0.00013972,2]
[346307054,1734882644975,-510.01,0.00013972,2]
[346307056,1734882644984,-500.0,0.00013972,2]
[346307059,1734882644994,-500.0,0.00013972,2]
[346307060,1734882645003,-500.0,0.00013972,2]
[346307063,1734882645012,-1536.02,0.00013972,2]
[346307065,1734882645022,-500.0,0.00013972,2]
[346307067,1734882645031,-890.78,0.00013972,2]
[346307069,1734882645040,-500.0,0.00013972,2]
[346307071,1734882645049,-500.0,0.00013972,2]
[346307073,1734882645059,-500.0,0.00013972,2]
[346307074,1734882645070,-500.0,0.00013972,2]
[346307076,1734882645079,-2060.8,0.00013972,2]
[346307078,1734882645089,-500.0,0.00013972,2]
[346307081,1734882645098,-500.0,0.00013972,2]
[346307083,1734882645110,-555.48,0.00013972,2]
[346307085,1734882645120,-500.0,0.00013972,2]
[346307086,1734882645130,-500.0,0.00013972,2]
[346307089,1734882645139,-500.0,0.00013972,2]
[346307090,1734882645148,-566.91,0.00013972,2]
[346307093,1734882645159,-500.0,0.00013972,2]
[346307095,1734882645168,-500.0,0.00013972,2]
[346307097,1734882645177,-500.0,0.00013972,2]
[346307098,1734882645188,-343.12,0.00013972,2]
[346307101,1734882645198,-500.0,0.00013972,2]
[346307103,1734882645208,-500.0,0.00013972,2]
[346307105,1734882645217,-500.0,0.00013972,2]
[346307107,1734882645226,-3186.28,0.00013972,2]
[346307109,1734882645235,-500.0,0.00013972,2]
[346307111,1734882645245,-500.0,0.00013972,2]
[346307113,1734882645254,-5917.15,0.00013972,2]
[346307115,1734882645264,-500.0,0.00013972,2]
[346307117,1734882645273,-500.0,0.00013972,2]
[346307119,1734882645282,-500.0,0.00013972,2]
[346307121,1734882645292,-794.47,0.00013972,2]
[346307123,1734882645301,-500.0,0.00013972,2]
[346307125,1734882645310,-517.54,0.00013972,2]
[346307126,1734882645321,-500.0,0.00013972,2]
[346307128,1734882645330,-500.0,0.00013972,2]
[346307130,1734882645339,-500.0,0.00013972,2]
[346307133,1734882645348,-1153.13,0.00013972,2]
[346307136,1734882645357,-706.46,0.00013972,2]
[346307138,1734882645366,-500.0,0.00013972,2]
[346307140,1734882645375,-500.0,0.00013972,2]
[346307142,1734882645385,-505.26,0.00013972,2]
[346307145,1734882645394,-2452.15,0.00013972,2]
[346307147,1734882645403,-500.0,0.00013972,2]
[346307149,1734882645412,-500.0,0.00013972,2]
[346307150,1734882645422,-987.13,0.00013972,2]
[346307153,1734882645431,-864.98,0.00013972,2]
[346307155,1734882645440,-500.0,0.00013972,2]
[346307157,1734882645449,-500.0,0.00013972,2]
[346307159,1734882645459,-1422.84,0.00013972,2]
[346307161,1734882645468,-500.0,0.00013972,2]
[346307163,1734882645477,-500.0,0.00013972,2]
[346307165,1734882645486,-500.0,0.00013972,2]
[346307167,1734882645496,-500.0,0.00013972,2]
[346307168,1734882645504,-151.0,0.00013972,2]
[346307170,1734882645513,-151.0,0.00013972,2]
[346307172,1734882645523,-151.0,0.00013972,2]
[346307175,1734882645532,-500.0,0.00013972,2]
[346307177,1734882645542,-500.0,0.00013972,2]
[346307179,1734882645551,-2219.63,0.00013972,2]
[346307181,1734882645560,-500.0,0.00013972,2]
[346307183,1734882645570,-751.0,0.00013972,2]
[346307185,1734882645580,-500.0,0.00013972,2]
[346307187,1734882645589,-500.0,0.00013972,2]
[346307189,1734882645598,-3126.25,0.00013972,2]
[346307191,1734882645607,-500.0,0.00013972,2]
[346307193,1734882645616,-1091.44,0.00013972,2]
[346307195,1734882645626,-1972.18,0.00013972,2]
[346307197,1734882645635,-2036.99,0.00013972,2]
[346307199,1734882645644,-500.0,0.00013972,2]
[346307201,1734882645654,-1683.22,0.00013972,2]
[346307203,1734882645663,-1830.13,0.00013972,2]
[346307205,1734882645672,-500.0,0.00013972,2]
[346307207,1734882645682,-500.0,0.00013972,2]
[346307209,1734882645691,-500.0,0.00013972,2]
[346307211,1734882645700,-323.56228315,0.00013972,2]
[346307213,1734882645709,-1692.58,0.00013972,2]